Cogmind - Beta 16 @@@ ROGUE MODE // 2026.01.03 @ 01:17:57 Player: KZ_RAD Result: Destroyed by as-77286 with Assembled Blade Performance ------------- Evolutions (0) 0 Regions Visited (4) 800 Robots Destroyed (27) 135 Value Destroyed (722) 722 Prototype IDs (2) 40 Alien Tech Used (0) 0 Bonus (-4) -4 TOTAL SCORE: 1693 Bonus ------- Follower Combat Kills 14 Friendly Fire -18 Cogmind --------- Core Integrity 0/250 Matter 187/300 Energy 233/265 System Corruption 0% Temperature Warning (329) Movement Walking (190) Ox1 Location -9/Mines Parts ------- > --- POWER (1) -------- Improved Ion Engine > --- PROPULSION (2) --- Aluminum Leg Aluminum Leg > --- UTILITY (2) ------ Scrap Suit > --- WEAPON (2) ------- Heavy EM Pulse Gun > --- INVENTORY (5) ---- Heat Sink Experimental Sensor Array Peak State ------------ > --- POWER ------------ Improved Ion Engine > --- PROPULSION ------- Aluminum Leg Aluminum Leg > --- UTILITY ---------- Scrap Suit > --- WEAPON ----------- Heavy EM Pulse Gun Heavy EM Pulse Gun > --- INVENTORY -------- Aluminum Leg Heat Sink Experimental Sensor Array [Rating: 17] Favorites ----------- Power Improved Ion Engine Engine Improved Ion Engine Propulsion Aluminum Leg Leg Aluminum Leg Utility Small Storage Unit Device Heat Sink Storage Small Storage Unit Weapon Light Cannon Energy Gun Heavy EM Pulse Gun Ballistic Gun Assault Rifle Ballistic Cannon Light Cannon Build | -11 -10 -10 -10 -9 ------- Run | Yrd Mat Min Exi Min Slots Evolved . | . . . . . Power . | . . . . . Propulsion . | . . . . . Utility . | . . . . . Weapon . | . . . . . Parts Attached 23 | 6 5 5 . 7 Power 4 | 1 1 1 . 1 Engine 4 | 1 1 1 . 1 Core . | . . . . . Reactor . | . . . . . Propulsion 8 | 2 1 2 . 3 Treads . | . . . . . Leg 8 | 2 1 2 . 3 Wheel . | . . . . . Hover . | . . . . . Flight . | . . . . . Utility 3 | 1 . 1 . 1 Device 2 | . . 1 . 1 Storage 1 | 1 . . . . Processor . | . . . . . Hackware . | . . . . . Protection . | . . . . . Artifact . | . . . . . Weapon 8 | 2 3 1 . 2 Energy Gun 4 | . 2 . . 2 Energy Cannon . | . . . . . Ballistic Gun 2 | 2 . . . . Ballistic Cannon 2 | . 1 1 . . Launcher . | . . . . . Special Weapon . | . . . . . Impact Weapon . | . . . . . Slashing Weapon . | . . . . . Piercing Weapon . | . . . . . Special Melee Weapon . | . . . . . Unidentified Prototypes . | . . . . . Parts Lost 6 | . 1 2 . 3 Power 1 | . . 1 . . Propulsion 1 | . . . . 1 Utility . | . . . . . Weapon 4 | . 1 1 . 2 Highest Loss Streak 2 | . 1 2 . 2 To Critical Strikes . | . . . . . Average Backups 5 | . 4 7 7 4 Power 1 | . 1 1 1 . Propulsion 1 | . . 1 2 1 Utility 1 | . . 1 2 2 Weapon 1 | . 1 2 2 . Tool/Special . | . . . . . Unused Backups 2 | . . . . 2 Power . | . . . . . Propulsion . | . . . . . Utility 2 | . . . . 2 Weapon . | . . . . . Tool/Special . | . . . . . Average Slot Usage (%) 93 | . 83 98 100 91 Engine 13 | . 14 13 14 14 Leg 27 | . 28 28 28 26 Device 10 | . . 13 14 14 Storage 13 | . 14 14 14 8 Energy Gun 9 | . 18 7 . 17 Ballistic Gun 1 | . 7 . . . Ballistic Cannon 15 | . . 19 28 9 Peak Build Rating 17 | 6 10 11 9 17 Average Rating 9 | 4 8 9 9 12 On Entrance 6 | . 6 9 9 9 Avg Prop Armor Cover (%) . | . . . . . Naked Turns . | . . . . . Heaviest Build 19 | 13 18 19 19 19 Greatest Support 20 | 20 20 20 20 20 Greatest Overweight (x) 1 | 1 1 . . . Average Overweight (x) . | . . . . . Largest Inventory Capacity 8 | 8 8 8 8 8 Average Capacity 7 | 6 8 8 8 6 Most Carried 8 | 3 8 8 7 8 Average Carried 5 | . 4 7 7 4 Final Capacity 8 | 8 8 8 8 5 Final Carried 7 | . 7 7 7 2 Scrap Suit Usage (%) 6 | . . . . 40 Class Distribution -------------------- 94% | Mutant 5% | Scrapper Dominant Class ---------------- Mutant | -10/Materials Mutant | -10/Mines Mutant | -10/Exiles Mutant | -9/Mines Resources | -11 -10 -10 -10 -9 ----------- Run | Yrd Mat Min Exi Min Matter Collected 689 | 252 121 155 . 161 Remotely . | . . . . . Salvage Created 901 | . 376 148 . 377 Parts 50 | . 17 15 . 18 Haulers Intercepted . | . . . . . Recyclers Shooed 2 | . . . . 2 Parts Field Recycled . | . . . . . Retrieved Matter . | . . . . . Parts Self-Destructed . | . . . . . Prevented . | . . . . . Parts Restored . | . . . . . Kills | -11 -10 -10 -10 -9 ------- Run | Yrd Mat Min Exi Min Combat Hostiles Destroyed 24 | . 5 7 . 12 Guns 10 | . 4 1 . 5 Cannons 9 | . . 6 . 3 AOE 4 | . . . . 4 Classes Destroyed 6 | . 4 1 . 1 Recycler 4 | . 1 . . 3 Operator 1 | . 1 . . . Watcher 1 | . 1 . . . Swarmer 10 | . . 4 . 6 Grunt 11 | . 5 3 . 3 Assembled 3 | . . . . 3 Best Kill Streak 6 | . 5 3 . 6 Combat Bots Only 4 | . 4 3 . 4 Max Kills in Single Turn 4 | . 1 1 . 4 Gunslinging 1 | . . . . 1 Exploded 4 | . . . . 4 Melee . | . . . . . Uniques/NPCs Destroyed . | . . . . . Combat | -11 -10 -10 -10 -9 -------- Run | Yrd Mat Min Exi Min Hostile Shots Fired 114 | . 24 45 . 45 Missed 27 | . 3 14 . 10 Hits 87 | . 21 31 . 35 Melee 6 | . . . . 6 Projectile 81 | . 21 31 . 29 Critical Strikes 1 | . . 1 . . Part Disruptions 2 | . . . . 2 Damage Taken 1309 | . 322 318 . 669 Core 273 | . 99 40 . 134 Absorbed by Shields . | . . . . . Core Remaining (%) 100 | 100 . . . . Volleys Fired 96 | . 24 38 . 34 Largest 2 | . 2 2 . 2 Hottest 90 | . 90 75 . 90 Shots Fired 174 | . 45 71 . 58 Gun 93 | . 45 16 . 32 Cannon 81 | . . 55 . 26 Launcher . | . . . . . Special . | . . . . . Kinetic 85 | . 4 55 . 26 Thermal . | . . . . . Explosive . | . . . . . Electromagnetic 89 | . 41 16 . 32 Robot Hit Streak 9 | . 8 9 . 4 Robot Miss Streak 8 | . 5 8 . 5 Penetration Max . | . . . . . Secondary Targets 1 | . . . . 1 Max Gunslinging Chain 1 | . . . . 1 Shots Hit Robots 78 | . 21 27 . 30 Core Hits 36 | . 9 8 . 19 Critical Kills . | . . . . . Critical Parts Destroyed . | . . . . . Critical Strikes 6 | . 1 4 . 1 Blast 4 | . . 3 . 1 Corrupt 2 | . 1 1 . . Melee Attacks . | . . . . . Impact . | . . . . . Slashing . | . . . . . Piercing . | . . . . . Sneak Attacks . | . . . . . Combat Hostiles . | . . . . . Follow-up Attacks . | . . . . . Damage Inflicted 1707 | . 362 517 . 828 Guns 710 | . 355 149 . 206 Cannons 579 | . . 312 . 267 Explosions 411 | . . 56 . 355 Melee . | . . . . . Ramming 7 | . 7 . . . Kinetic 579 | . . 312 . 267 Thermal 411 | . . 56 . 355 Explosive . | . . . . . Electromagnetic 710 | . 355 149 . 206 Impact . | . . . . . Slashing . | . . . . . Piercing . | . . . . . Highest Corruption . | . . . . . Average Corruption . | . . . . . Corruption Purged . | . . . . . Corruption Blocked . | . . . . . Overload Shots . | . . . . . Overflow Damage 78 | . . . . 78 Projectiles . | . . . . . Explosions 78 | . . . . 78 Melee . | . . . . . Knockbacks 10 | . . 3 . 7 Impact . | . . . . . Kinetic 10 | . . 3 . 7 Secondary . | . . . . . Self-Inflicted Damage 141 | . . . . 141 Shots 4 | . . . . 4 Rammed . | . . . . . Targets Rammed 1 | . 1 . . . Kicked 1 | . 1 . . . Crushed . | . . . . . Highest Temperature 517 | . 517 198 . 348 Average Temperature 164 | . 204 83 . 151 Received Heat Transfer 444 | . 162 120 . 162 Effects 11 | . 8 . . 3 Shutdowns 2 | . 2 . . . Energy Bleed 1 | . . . . 1 Interference 2 | . 1 . . 1 Matter Decay 1 | . 1 . . . Short Circuit 1 | . 1 . . . Damage (minor) 3 | . 2 . . 1 Damage (core) 1 | . 1 . . . Siege Activations . | . . . . . Martial Activations . | . . . . . Shielding Activations . | . . . . . Robots Disrupted 1 | . . . . 1 Combat Hostiles 1 | . . . . 1 Robots Corrupted 1 | . 1 . . . Combat Hostiles 1 | . 1 . . . Parts Fried . | . . . . . Impact Corruptions . | . . . . . Robots Melted . | . . . . . Combat Hostiles . | . . . . . Parts Melted 2 | . . . . 2 Heat Transferred 450 | . . 50 . 400 Parts Sabotaged . | . . . . . Parts Stolen . | . . . . . Parts Stripped . | . . . . . Power Chain Reactions 2 | . . 1 . 1 Alert | -11 -10 -10 -10 -9 ------- Run | Yrd Mat Min Exi Min Maximum Alert Level 1 | . . . . 1 Low Security (%) 88 | 100 100 100 . 45 Level 1 11 | . . . . 54 Level 2 . | . . . . . Level 3 . | . . . . . Level 4 . | . . . . . Level 5 . | . . . . . High Security . | . . . . . Max Security . | . . . . . Peak Influence 268 | . 79 115 . 268 Initial 15 | . . 15 . . Average 54 | . 13 35 . 166 Influence Increases 877 | . 152 301 . 424 Destroy 0b10 Robot/C 460 | . 100 160 . 200 Destroy 0b10 Robot/NC 30 | . 15 . . 15 Destroy Leader 92 | . 32 30 . 30 Allied During Kill 17 | . . 6 . 11 Successful Hack 5 | . 5 . . . Disable Machine 210 | . . 75 . 135 Destroy Structure 33 | . . . . 33 Lose Combat Pursuer 30 | . . 30 . . Influence Decreases 673 | . 113 265 75 220 Entered New Map 99 | . . 24 75 . Time Decay 514 | . 103 221 . 190 Lost Part 60 | . 10 20 . 30 Squads Dispatched 2 | . 2 . . . Investigation . | . . . . . Extermination . | . . . . . Reinforcement 2 | . 2 . . . Assault . | . . . . . Garrison . | . . . . . Intercept . | . . . . . Searches Triggered . | . . . . . Construction Impeded . | . . . . . Haulers Reinforced . | . . . . . Active Scanning Responses . | . . . . . Cargo Convoy Interrupts . | . . . . . Stealth | -11 -10 -10 -10 -9 --------- Run | Yrd Mat Min Exi Min Distress Signals 1 | . 1 . . . Communications Jammed . | . . . . . Distress Signals . | . . . . . Times Spotted 45 | . 11 9 . 25 Peak Tracking Total 18 | . 6 3 . 18 Tactical Retreats 4 | . . 2 . 2 Traps | -11 -10 -10 -10 -9 ------- Run | Yrd Mat Min Exi Min Traps Triggered . | . . . . . Indirectly . | . . . . . Trap Hack Attempts . | . . . . . Triggered . | . . . . . Disarmed . | . . . . . Reprogrammed . | . . . . . Reused . | . . . . . Traps Extracted . | . . . . . Installed . | . . . . . Triggered . | . . . . . Machines | -11 -10 -10 -10 -9 ---------- Run | Yrd Mat Min Exi Min Machines Disabled 14 | . . 5 . 9 Max in Single Turn 9 | . . 1 . 9 Machines Repaired . | . . . . . Machines Dismantled . | . . . . . Machines Sabotaged . | . . . . . Overloaded Fab Kills . | . . . . . Hacking | -11 -10 -10 -10 -9 --------- Run | Yrd Mat Min Exi Min Machines Accessed 7 | . 4 . 3 . Terminals 4 | . 4 . . . Fabricators . | . . . . . Repair Stations . | . . . . . Recycling Units . | . . . . . Scanalyzers . | . . . . . Garrison Access . | . . . . . Total Hacks 37 | . 11 . 26 . Successful 27 | . 1 . 26 . Failed 10 | . 10 . . . Catastrophic 1 | . 1 . . . Database Lockouts . | . . . . . Manual . | . . . . . Terminals 11 | . 11 . . . Fabricators . | . . . . . Repair Stations . | . . . . . Recycling Units . | . . . . . Scanalyzers . | . . . . . Garrison Access . | . . . . . Terminal Hacks 27 | . 1 . 26 . Record 26 | . . . 26 . Prototype ID Bank 1 | . 1 . . . Fabricator Hacks . | . . . . . Repair Station Hacks . | . . . . . Recycling Unit Hacks . | . . . . . Scanalyzer . | . . . . . Garrison Access Hacks . | . . . . . Unauthorized Hacks . | . . . . . Terminals . | . . . . . Fabricators . | . . . . . Repair Stations . | . . . . . Recycling Units . | . . . . . Scanalyzers . | . . . . . Garrison Access . | . . . . . Data Cores Recovered . | . . . . . Used . | . . . . . Hacking Detections 4 | . 4 . . . Full Trace Events . | . . . . . Feedback Events . | . . . . . Feedback Blocked . | . . . . . Robot Schematics Acquired . | . . . . . Robots Built . | . . . . . Authchips . | . . . . . Time . | . . . . . Total Robot Build Rating . | . . . . . Part Schematics Acquired . | . . . . . Parts Built . | . . . . . Authchips . | . . . . . Time . | . . . . . Total Part Build Rating . | . . . . . Part Studies Acquired . | . . . . . Parts Repaired . | . . . . . Time . | . . . . . Parts Recycled . | . . . . . Recycled Matter . | . . . . . Retrieved Matter . | . . . . . Retrieved Components . | . . . . . Parts Scanalyzed . | . . . . . Part Schematics Acquired . | . . . . . Parts Damaged . | . . . . . Bothacking | -11 -10 -10 -10 -9 ------------ Run | Yrd Mat Min Exi Min Used RIF Installer . | . . . . . Robots Hacked . | . . . . . Non-combat . | . . . . . Combat . | . . . . . Robot Hacks Applied . | . . . . . Relay Couplers Released . | . . . . . Fabnet Peak Effective % . | . . . . . Robots Rewired . | . . . . . Allies Hacked . | . . . . . Hacks Repelled . | . . . . . Allies | -11 -10 -10 -10 -9 -------- Run | Yrd Mat Min Exi Min Total Allies 5 | . . 2 . 3 Largest Group 3 | . . 2 1 3 Highest-Rated Group 42 | . . 42 31 40 Highest-Rated Ally 31 | . . 31 31 16 Total Orders . | . . . . . Ally Attacks 3 | . . 2 . 1 Total Damage 37 | . . 20 . 17 Kills 2 | . . 1 . 1 Allies Corrupted . | . . . . . Allies Melted . | . . . . . Intel | -11 -10 -10 -10 -9 ------- Run | Yrd Mat Min Exi Min Active Infowar (turns) . | . . . . . Robot Analysis Total . | . . . . . Derelict Logs Recovered 6 | . . 3 . 3 Drone Launches . | . . . . . Drone Recoveries . | . . . . . Exploration | -11 -10 -10 -10 -9 ------------- Run | Yrd Mat Min Exi Min Turns Passed 2470 | 50 587 876 563 394 Spaces Moved 1758 | 35 392 621 470 240 Core 6 | 6 . . . . Treads . | . . . . . Legs 1752 | 29 392 621 470 240 Wheels . | . . . . . Hover . | . . . . . Flight . | . . . . . Fastest Speed 50 | 50 120 120 120 120 Average Speed 119 | 110 120 120 120 120 Slowest Speed 190 | 120 190 120 120 120 Overloaded Moves . | . . . . . Propulsion Burnouts . | . . . . . Robots Hopped . | . . . . . Potential Cave-ins . | . . . . . Cave-ins Triggered . | . . . . . Exploration Rate (%) 62 | 4 70 99 80 57 Regions Visited 4 Branch Regions 3 Pre-discovered Areas 3 | . . 2 . 1 Known Exits Taken 1 | . . 1 . . Unknown Exits Taken 3 | 1 1 . 1 . Scrap Searched 2 | . . 1 . 1 Spaces Dug . | . . . . . Terrain Destroyed 36 | . . . . 36 Melee . | . . . . . Projectile . | . . . . . AOE 36 | . . . . 36 Terrain Rammed . | . . . . . Walls Destroyed . | . . . . . Machines Disabled . | . . . . . Actions | -11 -10 -10 -10 -9 --------- Run | Yrd Mat Min Exi Min Total 1951 | 46 464 681 469 291 Wait 40 | . 27 11 . 2 Move 1754 | 34 391 620 469 240 Hop . | . . . . . Pick Up 25 | 6 12 5 . 2 Fast Attach . | . . . . . Attach 18 | 6 3 3 . 6 Detach . | . . . . . Swap 5 | . 2 2 . 1 Drop 12 | . 4 2 . 6 Fire 96 | . 24 38 . 34 Melee . | . . . . . Ram . | . . . . . Kick 1 | . 1 . . . Crush . | . . . . . Escape Stasis . | . . . . . Rewire . | . . . . . Trap . | . . . . . Miscellaneous . | . . . . . Route ------- -11/Scrapyard -10/Materials (discovered 3 exits: [*Mat] / [*Min x2]) -10/Mines (discovered 4 exits: [*Mat x2] / *Exi / [*Sub]) -10/Exiles (discovered 2 exits: [*Min x2]) -9/Mines History --------- Turn | Location | Event 7 | -11/Scrapyard | Discovered new exit (range 16) 51 | -11/Scrapyard | Entered Materials 300 | -10/Materials | Build established: Mutant 449 | -10/Materials | Discovered new exit (range 13) 571 | -10/Materials | Discovered new exit (range 15) 629 | -10/Materials | Discovered new exit (range 9) 638 | -10/Materials | Entered Mines 648 | -10/Mines | Met a Derelict bent on vengeance 686 | -10/Mines | Learned Materials security intel 733 | -10/Mines | Discovered new exit (range 6) 861 | -10/Mines | Found a damaged Exp. Sensor Array with a note attached 863 | -10/Mines | Found Prototype Device 943 | -10/Mines | Learned location of Storage (-7) 980 | -10/Mines | Discovered new exit (range 9) 994 | -10/Mines | Identified exit to Exiles 1150 | -10/Mines | Discovered new exit (range 5) 1353 | -10/Mines | Core integrity fell below 50% 1507 | -10/Mines | Deemed a non-threat by the Exiles lab entrance 1514 | -10/Mines | Entered Exiles 1514 | -10/Exiles | Accompanied by 1 ally 1534 | -10/Exiles | Discovered new exit (range 15) 1544 | -10/Exiles | Led the pair of lost Derelicts to a safe place 1550 | -10/Exiles | Met 8R-AWN 1577 | -10/Exiles | Met EX-HEX 1632 | -10/Exiles | Met EX-DEC 1679 | -10/Exiles | Met EX-BIN 1890 | -10/Exiles | Discovered new exit (range 12) 1974 | -10/Exiles | Visited The Gauntlet 2077 | -10/Exiles | Entered Mines 2301 | -9/Mines | Found a Scrap Suit stashed away for nefarious purposes 2304 | -9/Mines | Found Scrap Suit 2342 | -9/Mines | Learned 2 Materials zone layouts 2364 | -9/Mines | Assisted by bots powering up and referring to "LRC-V3" 2385 | -9/Mines | Learned 2 Materials zone layouts 2404 | -9/Mines | Assembled infested the area 2435 | -9/Mines | Core integrity fell below 20% 2471 | -9/Mines | Destroyed by as-77286 with Assembled Blade Last Messages --------------- T-07 Excavator is excavating. ALERT: Infestation in the mines, dispatching Demolisher response squad. K-01 Serf collects debris. Acquired 13 matter. K-01 Serf collects debris. Acquired 17 matter. R-06 Scavenger collects Flight Unit. R-06 Scavenger destroyed. K-01 Serf collects debris. Aluminum Leg destroyed. as-40937 destroyed. Hvy. EM Pulse Gun destroyed. as-25441 destroyed. Overheating: Energy bleed (-48). as-63891 shuts down. Overheating: Scrap Suit damaged (-118). as-25382 destroyed. Overheating: System interference. Hvy. EM Pulse Gun temporarily disabled. Map ----- +----------------------------------------------------+ | ?????????????????????????????????????????? | | ?????????????????????????????????????????? | | ?????????????????????????????????????????? | | ?????????????????????????????????????????? | | ?????????????????????????????????????????? | | ?????????????????????????????????????????? | | ?????????????????????????????????????????? | | ?????????????????????????????????????????? | | ?????????????????????????????????????????? | | ??????????????????????##?????????????????? | | ????????????????????## ?????????????????? | | ???????????????????? ?????????????????? | | ????????????????????# ?????????????????? | | ????????????????????# #?????????????????? | | ????????????????????# #?????????????????? | | ????????????????????# #?????????????????? | | ????????????##??????# #?????????????????? | | ???????????## ##????# #?????????????????? | | ???????????# ##???# =#?????????????????? | | ???????????# #####!%#?????????????????? | | ????????????# =##????????????????? | | #???? #### %[#????????????????? | | #?????# [* ###??????????????? | | ######???????# g #??????????????? | | #???????# *###g#????????? #?? | | #??????## ####?#@#### #??? | | ## ######## ##????# aa #??? | | ### ! ##?????##### #??? | | #?# /* #??????????????? #?? | | #?########### #?????????????????? #?? | | #??????????### #?????????????????????? | | #????????????## #?????????????????????? | | ##?????????????## #?????????????????????? | | #???????????????? ?????????????????????? | | ?????????????????####????????????????????? | | ?????????????????????????????????????????? | | ?????????????????????????????????????????? | | ?????????????????????????????????????????? | | ?????????????????????????????????????????? | | ?????????????????????????????????????????? | | ?????????????????????????????????????????? | | ?????????????????????????????????????????? | | | | | | | | | | | | | | | | | +----------------------------------------------------+ Best States ------------- Heat Dissipation 35 Energy Generation 12 Energy Capacity 265 Matter Stores 300 Matter Capacity 300 Sight Range 16 Terrain Scan Density 10 Evasion (%) 55 Item Schematics ----------------- None Robot Schematics ------------------ None Fabricated ------------ Nothing Repaired ---------- Nothing Studied --------- None Alien Tech Used ----------------- None Achievements -------------- None Challenges ------------ None Game ------ Seed BiomechanicalPotentialMask Manual? 0 Play Time 00:23:39 Cumulative 6.3 hours Start 2026.01.03 @ 00:55:15 End 2026.01.03 @ 01:17:57 Sessions 1 Manual Loads 0 Difficulty Rogue Special Mode None Game No. 17 Rogue 17 Adventurer 0 Explorer 0 Win Type - Total 0 Types 0/0/0/0/0/0/0/0/0/0 Lore% 8 Gallery% 9 Achievement% 10 Wizard Run 0 Options --------- Layout 1 ASCII 0 Keyboard 0 Movement Mouse Keybinds 0 Fullscreen 1 Font 32/SmallcapsGlow Map View 50x35 Zoom Use 0% Tactical HUD 0 Map Filters NONE Filters NONE Steam 1 RUN: ff3df902-81e5-4672-b693-476f4d7f96b9